fUSD/lending_fUSD_20250222
["ID","MTS","AMOUNT","RATE_DAILY","PERIOD"]
[354056093,1740211850591,-500.0,0.00011041,2]
[354056094,1740211850602,-500.0,0.00011041,2]
[354056095,1740211850614,-500.0,0.00011041,2]
[354056096,1740211850625,-461.58427109,0.00011041,2]
[354056097,1740211850637,-500.0,0.00011041,2]
[354056098,1740211850648,-500.0,0.00011041,2]
[354056099,1740211850659,-500.0,0.00011041,2]
[354056100,1740211850670,-500.0,0.00011041,2]
[354056101,1740211850681,-500.0,0.00011041,2]
[354056102,1740211850692,-500.0,0.00011041,2]
[354056103,1740211850703,-624.16076051,0.00011041,2]
[354056104,1740211850714,-500.0,0.00011041,2]
[354056105,1740211850727,-984.38,0.00011041,2]
[354056106,1740211850738,-644.61,0.00011041,2]
[354056107,1740211850748,-508.92351888,0.00011041,2]
[354056108,1740211850759,-500.0,0.00011041,2]
[354056109,1740211850770,-500.0,0.00011041,2]
[354056110,1740211850781,-500.0,0.00011041,2]
[354056111,1740211850793,-937.54,0.00011041,2]
[354056112,1740211850804,-549.55,0.00011041,2]
[354056113,1740211850815,-500.0,0.00011041,2]
[354056114,1740211850826,-500.0,0.00011041,2]
[354056115,1740211850837,-621.01342947,0.00011041,2]
[354056116,1740211850848,-500.0,0.00011041,2]
[354056117,1740211850863,-500.0,0.00011041,2]
[354056118,1740211850876,-500.0,0.00011041,2]
[354056119,1740211850888,-500.0,0.00011041,2]
[354056120,1740211850901,-500.0,0.00011041,2]
[354056121,1740211850913,-1865.43261872,0.00011099,2]
[354056122,1740211850925,-564.14642,0.00011123,2]
[354056123,1740211850937,-500.0,0.00011123,2]
[354056124,1740211850951,-500.0,0.00011123,2]
[354056125,1740211850963,-500.0,0.00011123,2]
[354056126,1740211850975,-411.987783,0.00011123,2]
[354056127,1740211850993,-500.0,0.00011123,2]
[354056128,1740211851005,-500.0,0.00011123,2]
[354056129,1740211851016,-500.0,0.00011123,2]
[354056130,1740211851026,-500.0,0.00011123,2]
[354056131,1740211851038,-604.30811795,0.00011123,2]
[354056132,1740211851051,-500.0,0.00011123,2]
[354056133,1740211851067,-500.0,0.00011123,2]
[354056134,1740211851077,-500.0,0.00011123,2]
[354056135,1740211851089,-534.37034413,0.00011123,2]
[354056136,1740211851102,-500.0,0.00011123,2]
[354056137,1740211851115,-500.0,0.00011123,2]
[354056138,1740211851125,-521.26090708,0.00011123,2]
[354056139,1740211851139,-500.0,0.00011123,2]
[354056140,1740211851150,-500.0,0.00011123,2]
[354056141,1740211851162,-500.0,0.00011123,2]
[354056142,1740211851173,-1286.88,0.00011123,2]
[354056143,1740211851184,-500.0,0.00011123,2]
[354056144,1740211851195,-500.0,0.00011123,2]
[354056145,1740211851210,-500.0,0.00011123,2]
[354056146,1740211851222,-632.8654602,0.00011123,2]
[354056147,1740211851233,-500.0,0.00011123,2]
[354056148,1740211851245,-500.0,0.00011123,2]
[354056149,1740211851256,-500.0,0.00011123,2]
[354056150,1740211851267,-500.0,0.00011123,2]
[354056151,1740211851278,-500.0,0.00011123,2]
[354056152,1740211851290,-500.0,0.00011123,2]
[354056153,1740211851301,-500.0,0.00011123,2]
[354056154,1740211851313,-500.0,0.00011123,2]
[354056155,1740211851324,-500.0,0.00011123,2]
[354056156,1740211851336,-500.0,0.00011123,2]
[354056157,1740211851348,-500.0,0.00011123,2]
[354056158,1740211851359,-471.63340086,0.00011123,2]
[354056159,1740211851371,-500.0,0.00011123,2]
[354056160,1740211851382,-532.66,0.00011123,2]
[354056161,1740211851393,-500.0,0.00011123,2]
[354056162,1740211851404,-500.0,0.00011123,2]
[354056163,1740211851415,-500.0,0.00011123,2]
[354056164,1740211851426,-500.0,0.00011123,2]
[354056165,1740211851437,-500.0,0.00011123,2]
[354056166,1740211851452,-500.0,0.00011123,2]
[354056167,1740211851463,-500.0,0.00011123,2]
[354056168,1740211851474,-500.0,0.00011123,2]
[354056169,1740211851485,-500.0,0.00011123,2]
[354056170,1740211851496,-500.0,0.00011123,2]
[354056171,1740211851507,-500.0,0.00011123,2]
[354056172,1740211851517,-500.0,0.00011123,2]
[354056173,1740211851532,-500.0,0.00011123,2]
[354056174,1740211851543,-500.0,0.00011123,2]
[354056175,1740211851555,-500.0,0.00011123,2]
[354056176,1740211851567,-500.0,0.00011123,2]
[354056177,1740211851578,-506.67,0.00011123,2]
[354056178,1740211851590,-500.0,0.00011123,2]
[354056179,1740211851601,-500.0,0.00011123,2]
[354056180,1740211851612,-500.0,0.00011123,2]
[354056181,1740211851623,-500.0,0.00011123,2]
[354056182,1740211851633,-500.0,0.00011123,2]
[354056183,1740211851644,-500.0,0.00011123,2]
[354056184,1740211851654,-500.0,0.00011123,2]
[354056185,1740211851666,-500.0,0.00011123,2]
[354056186,1740211851676,-500.0,0.00011123,2]
[354056187,1740211851687,-224.41424205,0.00011123,2]
[354056188,1740211851698,-984.38,0.00011123,2]
[354056189,1740211851709,-644.61,0.00011123,2]
[354056190,1740211851719,-500.0,0.00011123,2]
[354056191,1740211851730,-500.0,0.00011123,2]
[354056192,1740211851741,-500.0,0.00011123,2]
[354056193,1740211851752,-937.54,0.00011123,2]
[354056194,1740211851763,-549.55,0.00011123,2]
[354056195,1740211851774,-500.0,0.00011123,2]
[354056196,1740211851786,-500.0,0.00011123,2]
[354056197,1740211851796,-500.0,0.00011123,2]
[354056198,1740211851807,-300.74642033,0.00011123,2]
[354056199,1740211851818,-500.0,0.00011123,2]
[354056200,1740211852096,-500.0,0.00011123,2]
[354056201,1740211852109,-1865.43261866,0.00011152,2]
[354056202,1740211852119,-253.347,0.00011157,2]
[354056203,1740211852129,-150.777,0.00011157,2]
[354056204,1740211852140,-2036.632,0.00011157,2]
[354056205,1740211852150,-1279.302,0.00011157,2]
[354056206,1740211852160,-213.631,0.00011157,2]
[354056207,1740211852169,-644.631,0.00011157,2]
[354056208,1740211852179,-593.437,0.00011157,2]
[354056209,1740211852188,-278.584,0.00011157,2]
[354056210,1740211852197,-1802.1,0.00011157,2]
[354056211,1740211852207,-1276.102,0.00011157,2]
[354056212,1740211852217,-1424.0,0.00011157,2]
[354056213,1740211852227,-907.0,0.00011157,2]
[354056214,1740211852237,-789.0,0.00011157,2]
[354056215,1740211852246,-4095.512,0.00011157,2]
[354056216,1740211852256,-544.422,0.00011157,2]
[354056217,1740211852266,-350.83984356,0.000112,2]
[354056218,1740211852275,-1658.0,0.000112,2]
[354056219,1740211852284,-564.14642,0.00011205,2]
[354056220,1740211852293,-296.46798594,0.00011205,2]
[354056221,1740211852303,-500.0,0.00011205,2]
[354056222,1740211852313,-411.987783,0.00011205,2]
[354056223,1740211852321,-500.0,0.00011205,2]
[354056224,1740211852330,-500.0,0.00011205,2]
[354056225,1740211852339,-151.0,0.00011205,2]
[354056226,1740211852349,-500.0,0.00011205,2]
[354056227,1740211852358,-500.0,0.00011205,2]
[354056228,1740211852368,-151.0,0.00011205,2]
[354056229,1740211852377,-500.0,0.00011205,2]
[354056230,1740211852386,-500.0,0.00011205,2]
[354056231,1740211852397,-500.0,0.00011205,2]
[354056232,1740211852406,-500.0,0.00011205,2]
[354056233,1740211852415,-1286.88,0.00011205,2]
[354056234,1740211852425,-500.0,0.00011205,2]
[354056235,1740211852434,-500.0,0.00011205,2]
[354056236,1740211852443,-500.0,0.00011205,2]
[354056237,1740211852453,-500.0,0.00011205,2]
[354056238,1740211852462,-500.0,0.00011205,2]
[354056239,1740211852471,-500.0,0.00011205,2]
[354056240,1740211852481,-500.0,0.00011205,2]
[354056241,1740211852490,-236.900687,0.00011205,2]
[354056242,1740211852499,-500.0,0.00011205,2]
[354056243,1740211852509,-500.0,0.00011205,2]
[354056244,1740211852519,-500.0,0.00011205,2]
[354056245,1740211852529,-269.85779837,0.00011205,2]
[354056246,1740211852538,-532.66,0.00011205,2]
[354056247,1740211852548,-500.0,0.00011205,2]
[354056248,1740211852557,-500.0,0.00011205,2]
[354056249,1740211852566,-642.68264297,0.00011205,2]
[354056250,1740211852575,-500.0,0.00011205,2]
[354056251,1740211852584,-500.0,0.00011205,2]
[354056252,1740211852594,-500.0,0.00011205,2]
[354056253,1740211852604,-500.0,0.00011205,2]
[354056254,1740211852613,-500.0,0.00011205,2]
[354056255,1740211852623,-500.0,0.00011205,2]
[354056256,1740211852632,-500.0,0.00011205,2]
[354056257,1740211852641,-500.0,0.00011205,2]
[354056258,1740211852650,-500.0,0.00011205,2]
[354056259,1740211852660,-500.0,0.00011205,2]
[354056260,1740211852669,-500.0,0.00011205,2]
[354056261,1740211852679,-500.0,0.00011205,2]
[354056262,1740211852689,-500.0,0.00011205,2]
[354056263,1740211852699,-506.67,0.00011205,2]
[354056264,1740211852708,-574.00647784,0.00011205,2]
[354056265,1740211852718,-500.0,0.00011205,2]
[354056266,1740211852728,-500.0,0.00011205,2]
[354056267,1740211852737,-500.0,0.00011205,2]
[354056268,1740211852747,-500.0,0.00011205,2]
[354056269,1740211852757,-500.0,0.00011205,2]
[354056270,1740211852767,-500.0,0.00011205,2]
[354056271,1740211852776,-500.0,0.00011205,2]
[354056272,1740211852786,-500.0,0.00011205,2]
[354056273,1740211852795,-984.38,0.00011205,2]
[354056274,1740211852804,-644.61,0.00011205,2]
[354056275,1740211852814,-500.0,0.00011205,2]
[354056276,1740211852824,-500.0,0.00011205,2]
[354056277,1740211852834,-500.0,0.00011205,2]
[354056278,1740211852843,-937.54,0.00011205,2]
[354056279,1740211852853,-549.55,0.00011205,2]
[354056280,1740211852863,-500.0,0.00011205,2]
[354056281,1740211852872,-500.0,0.00011205,2]
[354056282,1740211852882,-500.0,0.00011205,2]
[354056283,1740211852891,-500.0,0.00011205,2]
[354056284,1740211852901,-500.0,0.00011205,2]
[354056285,1740211852910,-500.0,0.00011212,2]
[354056286,1740211852920,-350.48525896,0.00011212,2]
[354056287,1740211852929,-159.82658788,0.00011233,2]
[354056288,1740211852938,-159.81318474,0.00011239,2]
[354056289,1740211852948,-167.92700848,0.00011269,2]
[354056290,1740211852957,-500.0,0.00011287,2]
[354056291,1740211852967,-607.93202228,0.00011287,2]
[354056292,1740211852977,-500.0,0.00011287,2]
[354056293,1740211852987,-524.14991308,0.00011287,2]
[354056294,1740211852996,-533.8859558,0.00011287,2]
[354056295,1740211853006,-153.74876953,0.00011287,2]
[354056296,1740211853016,-315.31768915,0.00011287,2]
[354056297,1740211853025,-500.0,0.00011287,2]
[354056298,1740211853035,-1286.88,0.00011287,2]
[354056299,1740211853044,-500.0,0.00011287,2]
[354056300,1740211853055,-500.0,0.00011287,2]
[354056301,1740211853065,-500.0,0.00011287,2]
[354056302,1740211853075,-500.0,0.00011287,2]
[354056303,1740211853085,-500.0,0.00011287,2]
[354056304,1740211853095,-500.0,0.00011287,2]
[354056305,1740211853104,-500.0,0.00011287,2]
[354056306,1740211853113,-500.0,0.00011287,2]
[354056307,1740211853123,-500.0,0.00011287,2]
[354056308,1740211853134,-500.0,0.00011287,2]
[354056309,1740211853144,-532.66,0.00011287,2]
[354056310,1740211853154,-500.0,0.00011287,2]
[354056311,1740211853163,-500.0,0.00011287,2]
[354056312,1740211853172,-500.0,0.00011287,2]
[354056313,1740211853182,-186.43074162,0.00011287,2]
[354056314,1740211853192,-500.0,0.00011287,2]
[354056315,1740211853202,-500.0,0.00011287,2]
[354056316,1740211853212,-500.0,0.00011287,2]
[354056317,1740211853222,-500.0,0.00011287,2]
[354056318,1740211853231,-500.0,0.00011287,2]
[354056319,1740211853240,-500.0,0.00011287,2]
[354056320,1740211853250,-500.0,0.00011287,2]
[354056321,1740211853259,-500.0,0.00011287,2]
[354056322,1740211853268,-500.0,0.00011287,2]
[354056323,1740211853278,-500.0,0.00011287,2]
[354056324,1740211853288,-500.0,0.00011287,2]
[354056325,1740211853297,-506.67,0.00011287,2]
[354056326,1740211853307,-500.0,0.00011287,2]
[354056327,1740211853316,-500.0,0.00011287,2]
[354056328,1740211853325,-500.0,0.00011287,2]
[354056329,1740211853334,-500.0,0.00011287,2]
[354056330,1740211853343,-500.0,0.00011287,2]
[354056331,1740211853352,-500.0,0.00011287,2]
[354056332,1740211853362,-500.0,0.00011287,2]
[354056333,1740211853372,-289.67580892,0.00011287,2]
[354056334,1740211853381,-984.38,0.00011287,2]
[354056335,1740211853391,-644.61,0.00011287,2]
[354056336,1740211853401,-500.0,0.00011287,2]
[354056337,1740211853410,-521.80421882,0.00011287,2]
[354056338,1740211853419,-500.0,0.00011287,2]
[354056339,1740211853428,-937.54,0.00011287,2]
[354056340,1740211853438,-549.55,0.00011287,2]
[354056341,1740211853447,-500.0,0.00011287,2]
[354056342,1740211853456,-500.0,0.00011287,2]
[354056343,1740211853465,-248.94749683,0.00011287,2]
[354056344,1740211853474,-500.0,0.00011287,2]
[354056345,1740211853483,-500.0,0.00011287,2]
[354056346,1740211853492,-205.27972591,0.000113,2]
[354056347,1740211853501,-2445.0,0.00011369,2]
[354056348,1740211853511,-500.0,0.00011369,2]
[354056349,1740211853519,-500.0,0.00011369,2]
[354056350,1740211853528,-500.0,0.00011369,2]
[354056351,1740211853537,-1286.88,0.00011369,2]
[354056352,1740211853546,-500.0,0.00011369,2]
[354056353,1740211853555,-500.0,0.00011369,2]
[354056354,1740211853564,-500.0,0.00011369,2]
[354056355,1740211853574,-500.0,0.00011369,2]
[354056356,1740211853583,-199.91662414,0.00011369,2]
[354056357,1740211853592,-500.0,0.00011369,2]
[354056358,1740211853602,-500.0,0.00011369,2]
[354056359,1740211853611,-500.0,0.00011369,2]
[354056360,1740211853620,-500.0,0.00011369,2]
[354056361,1740211853629,-500.0,0.00011369,2]
[354056362,1740211853639,-532.66,0.00011369,2]
[354056363,1740211853648,-155.12148886,0.00011369,2]
[354056364,1740211853658,-500.0,0.00011369,2]
[354056365,1740211853667,-500.0,0.00011369,2]
[354056366,1740211853677,-500.0,0.00011369,2]
[354056367,1740211853686,-500.0,0.00011369,2]
[354056368,1740211853695,-500.0,0.00011369,2]
[354056369,1740211853704,-400.97188949,0.00011369,2]
[354056370,1740211853714,-500.0,0.00011369,2]
[354056371,1740211853723,-500.0,0.00011369,2]
[354056372,1740211853732,-500.0,0.00011369,2]
[354056373,1740211853741,-345.14090932,0.00011369,2]
[354056374,1740211853750,-500.0,0.00011369,2]
[354056375,1740211853760,-442.76565482,0.00011369,2]
[354056376,1740211853769,-500.0,0.00011369,2]
[354056377,1740211853779,-506.67,0.00011369,2]
[354056378,1740211853789,-500.0,0.00011369,2]
[354056379,1740211853799,-500.0,0.00011369,2]
[354056380,1740211853809,-500.0,0.00011369,2]
[354056381,1740211853819,-500.0,0.00011369,2]
[354056382,1740211853828,-500.0,0.00011369,2]
[354056383,1740211853837,-500.0,0.00011369,2]
[354056384,1740211853847,-500.0,0.00011369,2]
[354056385,1740211853856,-984.38,0.00011369,2]
[354056386,1740211853865,-644.61,0.00011369,2]
[354056387,1740211853874,-500.0,0.00011369,2]
[354056388,1740211853883,-500.0,0.00011369,2]
[354056389,1740211853893,-937.54,0.00011369,2]
[354056390,1740211853903,-549.55,0.00011369,2]
[354056391,1740211853912,-500.0,0.00011369,2]
[354056392,1740211853922,-500.0,0.00011369,2]
[354056393,1740211853931,-500.0,0.00011369,2]
[354056394,1740211853940,-500.0,0.00011369,2]
[354056395,1740211853949,-1865.43261866,0.00011445,2]
[354056396,1740211853960,-500.0,0.00011452,2]
[354056397,1740211853970,-500.0,0.00011452,2]
[354056398,1740211853979,-500.0,0.00011452,2]
[354056399,1740211853988,-1286.88,0.00011452,2]
[354056400,1740211853997,-175.85649784,0.00011452,2]
[354056401,1740211854006,-500.0,0.00011452,2]
[354056402,1740211854015,-500.0,0.00011452,2]
[354056403,1740211854025,-500.0,0.00011452,2]
[354056404,1740211854034,-500.0,0.00011452,2]
[354056405,1740211854043,-500.0,0.00011452,2]
[354056406,1740211854055,-500.0,0.00011452,2]
[354056407,1740211854065,-550.36392068,0.00011452,2]
[354056408,1740211854074,-500.0,0.00011452,2]
[354056409,1740211854084,-532.66,0.00011452,2]
[354056410,1740211854095,-500.0,0.00011452,2]
[354056411,1740211854104,-556.06496527,0.00011452,2]
[354056412,1740211854114,-500.0,0.00011452,2]
[354056413,1740211854123,-500.0,0.00011452,2]
[354056414,1740211854135,-500.0,0.00011452,2]
[354056415,1740211854145,-500.0,0.00011452,2]
[354056416,1740211854155,-500.0,0.00011452,2]
[354056417,1740211854164,-500.0,0.00011452,2]
[354056418,1740211854174,-500.0,0.00011452,2]
[354056419,1740211854184,-500.0,0.00011452,2]
[354056420,1740211854194,-506.67,0.00011452,2]
[354056421,1740211854203,-500.0,0.00011452,2]
[354056422,1740211854213,-500.0,0.00011452,2]
[354056423,1740211854223,-500.0,0.00011452,2]
[354056424,1740211854232,-350.29517067,0.00011452,2]
[354056425,1740211854241,-500.0,0.00011452,2]
[354056426,1740211854251,-500.0,0.00011452,2]
[354056427,1740211854261,-500.0,0.00011452,2]
[354056428,1740211854271,-984.38,0.00011452,2]
[354056429,1740211854281,-644.61,0.00011452,2]
[354056430,1740211854290,-500.0,0.00011452,2]
[354056431,1740211854300,-500.0,0.00011452,2]
[354056432,1740211854309,-937.54,0.00011452,2]
[354056433,1740211854319,-549.55,0.00011452,2]
[354056434,1740211854329,-500.0,0.00011452,2]
[354056435,1740211854339,-312.66049178,0.00011452,2]
[354056436,1740211854348,-500.0,0.00011452,2]
[354056437,1740211854358,-500.0,0.00011452,2]
[354056438,1740211854368,-1000.0,0.00011533,2]
[354056439,1740211854378,-1000.0,0.00011533,2]
[354056440,1740211854387,-1000.0,0.00011533,2]
[354056441,1740211854397,-462.25516803,0.00011533,2]
[354056442,1740211854406,-500.0,0.00011534,2]
[354056443,1740211854416,-500.0,0.00011534,2]
[354056444,1740211854425,-152.209456,0.00011534,2]
[354056445,1740211854434,-500.0,0.00011534,2]
[354056446,1740211854443,-1286.88,0.00011534,2]
[354056447,1740211854453,-500.0,0.00011534,2]
[354056448,1740211854463,-500.0,0.00011534,2]
[354056449,1740211854472,-500.0,0.00011534,2]
[354056450,1740211854482,-500.0,0.00011534,2]
[354056451,1740211854492,-365.30750988,0.00011534,2]
[354056452,1740211854669,-134.69249012,0.00011534,2]
[354056453,1740211854680,-500.0,0.00011534,2]
[354056454,1740211854690,-425.99062447,0.00011534,2]
[354056455,1740211854700,-532.66,0.00011534,2]
[354056456,1740211854710,-500.0,0.00011534,2]
[354056457,1740211854720,-78.47457282,0.00011534,2]
[354056459,1740211951664,504.36,8.767e-05,2]
[354056460,1740212562123,1173.02,8.293e-05,2]
[354056466,1740212827046,532.66595378,0.0002,120]
[354056472,1740212960390,167.69,8.767e-05,2]
[354056492,1740213032127,-539.93380391,9.9e-05,2]
[354056493,1740213032181,-58.73109609,9.9e-05,2]
[354056494,1740213032191,-500.0,9.95e-05,2]
[354056495,1740213032201,-42.29141053,9.95e-05,2]
[354056496,1740213032289,-107.70858947,9.95e-05,2]
[354056497,1740213032299,-150.0,9.999e-05,2]
[354056498,1740213032308,-309.32163813,9.999e-05,2]
[354056499,1740213032344,6572.96112405,0.0002,120]
[354056500,1740213032398,-190.67836187,9.999e-05,2]
[354056501,1740213032408,-581.46361103,0.0001,2]
[354056511,1740213038199,-391.02312188,0.0001,2]
[354056515,1740213040191,-2782.21319021,0.0001,2]
[354056516,1740213040202,-429589.5278572,0.0001,2]
[354056517,1740213040297,-406.06525861,0.0001,2]
[354056530,1740213043134,-504.29734321,0.0001,2]
[354056531,1740213043147,-714.76785034,0.0001,2]
[354056533,1740213046183,-344.91619919,0.0001,2]
[354056534,1740213046342,-856.67782586,0.0001,2]
[354056545,1740213673957,1152.33,8.219e-05,2]
[354056548,1740214232328,-457.39,9.738e-05,2]
[354056549,1740214232338,-500.0,9.741e-05,2]
[354056550,1740214232347,-200.0,9.743e-05,2]
[354056551,1740214232357,-1000.0,9.77e-05,2]
[354056552,1740214232366,-6136.33,9.809e-05,2]
[354056553,1740214232486,-5258.46,9.809e-05,2]
[354056554,1740214232495,-500.0,9.867e-05,2]
[354056555,1740214232505,-420.71,9.894e-05,2]
[354056556,1740214232514,-867.79833198,9.899e-05,2]
[354056557,1740214232524,-1257.08962253,9.9e-05,2]
[354056558,1740214232694,-864.56962745,9.9e-05,2]
[354056567,1740214238205,-1682.2401957,9.9e-05,2]
[354056568,1740214238309,-1152.81994202,9.9e-05,2]
[354056569,1740214238412,-426.763,9.9e-05,2]
[354056732,1740214240442,-1600.0,9.9e-05,2]
[354056743,1740214240548,-487.52557497,9.9e-05,2]
[354056744,1740214240602,-13111.40860565,9.9e-05,2]
[354056745,1740214240757,-538.49795999,9.9e-05,2]
[354056746,1740214240770,-385.95255073,9.9e-05,2]
[354056747,1740214240781,-997.65756837,9.9e-05,2]
[354056748,1740214240865,-561.988505,9.9e-05,2]
[354056749,1740214240877,-5823.12374433,9.9e-05,2]
[354056753,1740214243385,-7088.68837114,9.9e-05,2]
[354056754,1740214243457,-297.2254107,9.9e-05,2]
[354056755,1740214243468,-12.04352142,9.9e-05,2]
[354056756,1740214243477,-150.0,9.973e-05,2]
[354056757,1740214243486,-798.88710824,9.973e-05,2]
[354056758,1740214243495,-150.0,9.999e-05,2]
[354056759,1740214243505,-5310.07212763,0.0001,2]
[354056968,1740214246317,-9665.60904791,0.0001,2]
[354056969,1740214246578,-3026.43410023,0.0001,2]
[354056970,1740214246589,-4449.06022809,0.0001,2]
[354056971,1740214288012,1000.0,0.0002,120]
[354056973,1740214349405,155.87,8.767e-05,2]
[354056974,1740214879625,198.99851969,0.00020131,120]
[354056975,1740214996473,1000.0,9.442e-05,2]
[354056976,1740215289680,165.12,9.422e-05,2]
[354056977,1740215321541,2085.29,9.415e-05,2]
[354056978,1740215361388,1259.93,8.219e-05,2]
[354056979,1740215427372,1500.0,9.385e-05,2]
[354056980,1740215431663,-677.47,9.743e-05,2]
[354056981,1740215431673,-150.0,9.799e-05,2]
[354056982,1740215431682,-992.8453,9.8e-05,2]
[354056983,1740215431691,-15610.71143124,9.8e-05,2]
[354056984,1740215431702,-10035.42236876,9.8e-05,2]
[354056985,1740215431711,-2714.3721,9.8e-05,2]
[354056986,1740215431720,-6124.14338508,9.8e-05,2]
[354056987,1740215431729,-1000.0,9.8e-05,2]
[354056988,1740215431738,-21267.08,9.813e-05,2]
[354056989,1740215431747,-152.39,9.84e-05,2]
[354056990,1740215431756,-500.0,9.84e-05,2]
[354056991,1740215431765,-500.0,9.84e-05,2]
[354056992,1740215431774,-500.0,9.899e-05,2]
[354056993,1740215431783,-500.0,9.899e-05,2]
[354056994,1740215431792,-500.0,9.899e-05,2]
[354056995,1740215431801,-500.0,9.899e-05,2]
[354056996,1740215431810,-500.0,9.899e-05,2]
[354056997,1740215431819,-500.0,9.899e-05,2]
[354056998,1740215431828,-216.00086192,9.899e-05,2]
[354056999,1740215431837,-210.51865607,9.899e-05,2]
[354057000,1740215431849,-110.43717486,9.899e-05,2]
[354057001,1740215431858,-592.25255164,9.9e-05,2]
[354057002,1740215431869,-13894.87632312,9.9e-05,2]
[354057003,1740215431880,-1000.0,9.9e-05,2]
[354057004,1740215431890,-481.82368151,9.9e-05,2]
[354057005,1740215431926,-1577.36276331,9.9e-05,2]
[354057006,1740215431980,-993.6565235,9.9e-05,2]
[354057533,1740215437431,-1373.53466722,9.8e-05,2]
[354057536,1740215437441,-1398.90972697,9.9e-05,2]
[354057538,1740215437452,-833.69583873,9.9e-05,2]
[354057542,1740215437482,-499.67696362,9.9e-05,2]
[354057554,1740215437591,-1520.6853254,9.9e-05,2]
[354057557,1740215437603,-414.04008287,9.9e-05,2]
[354057562,1740215437644,-526.20531,9.9e-05,2]
[354057564,1740215437655,-3829.0267,9.9e-05,2]
[354057566,1740215437666,-1589.07529685,9.9e-05,2]
[354057569,1740215437676,-1471.09,9.9e-05,2]
[354057572,1740215437697,-33996.95258189,9.9e-05,2]
[354057760,1740215439568,-331.07,9.9e-05,2]
[354057767,1740215439621,-78679.29408846,9.9e-05,2]
[354057780,1740215439727,-802.30795111,9.9e-05,2]
[354057782,1740215439738,-401.44214624,9.9e-05,2]
[354057787,1740215439781,-28019.2140588,9.9e-05,2]
[354057794,1740215439835,-527.55520127,9.9e-05,2]
[354057807,1740215439941,-217048.36078471,9.9e-05,2]
[354057809,1740215439950,-4569.2119951,9.91e-05,2]
[354057811,1740215439959,-999.99,9.91e-05,2]
[354057813,1740215439968,-4028.23644937,9.91e-05,2]
[354057815,1740215439977,-9999.99,9.91e-05,2]
[354057817,1740215439986,-1450.46141461,9.971e-05,2]
[354057819,1740215439995,-1450.46141461,9.971e-05,2]
[354057820,1740215440003,-150.99,9.971e-05,2]
[354057821,1740215440012,-299.99,9.971e-05,2]
[354057822,1740215440021,-215.44,9.987e-05,2]
[354057823,1740215440030,-500.0,9.991e-05,2]
[354057824,1740215440039,-19079.69084908,0.0001,2]
[354057825,1740215440056,-2700.7487121,0.0001,2]
[354058065,1740215442755,-1776.20347505,0.0001,2]
[354058072,1740215442810,-264388.19283561,0.0001,2]
[354058074,1740215442820,-64345.4038355,0.0001,2]
[354058076,1740215442829,-194.44360271,0.0001,2]
[354058078,1740215442838,-550.0,0.0001,2]
[354058080,1740215442848,-300.0,0.0001,2]
[354058082,1740215442859,-1981.53,0.0001,2]
[354058084,1740215442868,-1081.63,0.0001,2]
[354058086,1740215442876,-2700.0,0.0001,3]
[354058088,1740215442885,-955.62668,0.0001,2]
[354058090,1740215442895,-200.59963482,0.00010088,2]
[354058092,1740215442903,-167.0,0.00010088,2]
[354058094,1740215442912,-155.0,0.00010088,2]
[354058096,1740215442922,-167.34373526,0.00010088,2]
[354058098,1740215442931,-155.0,0.00010088,2]